Cogmind - Beta 9.1 @@@ ROGUE MODE // 2019.10.31 @ 23:22:01 Player: Noname Result: Destroyed by G-34 Mercenary with Small Laser Performance ------------- Evolutions (1) 500 Regions Visited (3) 600 Robots Destroyed (25) 125 Value Destroyed (412) 412 Prototype IDs (0) 0 Alien Tech Used (0) 0 Bonus (0) 0 TOTAL SCORE: 1637 Bonus ------- None Cogmind --------- Core Integrity 0/400 Matter 128/300 Energy 100/100 System Corruption 0% Temperature Cool (6) Location -9/Materials Parts ------- Power (1) Propulsion (2) Utility (4) Large Storage Unit Large Storage Unit Targeting Computer Weapon (2) Inventory (16) Ion Engine Light Ion Engine Light Ion Engine Aluminum Leg Aluminum Leg Improved Heat Sink Large Storage Unit High-capacity Matter Pod (93) Peak State ------------ Power Light Nuclear Core Propulsion Aluminum Leg Aluminum Leg Utility Improved Heat Sink Large Storage Unit Large Storage Unit Medium Armor Plating Weapon Heavy Assault Rifle Light Cannon Inventory Ion Engine Light Ion Engine Light Ion Engine Aluminum Leg Aluminum Leg Aluminum Leg Improved Heat Sink High-capacity Matter Pod Targeting Computer Mining Laser [Rating: 16] Favorites ----------- Power Light Nuclear Core Engine Ion Engine Power Core Light Nuclear Core Propulsion Aluminum Leg Leg Aluminum Leg Utility Large Storage Unit Device Improved Heat Sink Storage Large Storage Unit Processor Targeting Computer Protection Medium Armor Plating Weapon Heavy Assault Rifle Energy Gun Small Laser Ballistic Gun Heavy Assault Rifle Ballistic Cannon Light Cannon Special Weapon Mining Laser Build | -11 -10 -10 -9 ------- Run | Scr Mat Min Mat Slots Evolved 2 | . . . 2 Power . | . . . . Propulsion . | . . . . Utility 2 | . . . 2 Weapon . | . . . . Parts Attached 23 | . 15 2 6 Power 2 | . 2 . . Engine 1 | . 1 . . Core 1 | . 1 . . Reactor . | . . . . Propulsion 6 | . 5 . 1 Treads . | . . . . Leg 6 | . 5 . 1 Wheel . | . . . . Hover . | . . . . Flight . | . . . . Utility 9 | . 5 . 4 Device 3 | . 2 . 1 Storage 3 | . 2 . 1 Processor 1 | . . . 1 Hackware . | . . . . Protection 2 | . 1 . 1 Artifact . | . . . . Weapon 6 | . 3 2 1 Energy Gun . | . . . . Energy Cannon . | . . . . Ballistic Gun 4 | . 3 1 . Ballistic Cannon 1 | . . 1 . Launcher . | . . . . Special Weapon 1 | . . . 1 Impact Weapon . | . . . . Slashing Weapon . | . . . . Piercing Weapon . | . . . . Special Melee Weapon . | . . . . Unidentified Prototypes . | . . . . Parts Lost 12 | . 1 2 9 Power 1 | . . . 1 Propulsion 3 | . . . 3 Utility 3 | . 1 . 2 Weapon 5 | . . 2 3 Highest Loss Streak 9 | . 1 1 9 Average Slot Usage (%) 98 | . 99 100 93 Engine 2 | . 4 . . Core 10 | . 9 14 10 Leg 26 | . 28 28 19 Device 5 | . 7 . 10 Storage 21 | . 17 28 22 Protection 2 | . 2 . 7 Energy Gun 2 | . 4 . . Ballistic Gun 21 | . 23 25 9 Ballistic Cannon 2 | . . 2 9 Naked Turns . | . . . . Heaviest Build 51 | 12 43 43 51 Greatest Support 20 | 20 20 20 20 Greatest Overweight (x) 12 | . 2 2 12 Average Overweight (x) 1 | . . 1 2 Largest Inventory Capacity 16 | . 16 16 16 Average Capacity 12 | . 8 16 16 Most Carried 14 | . 12 14 12 Average Carried 9 | . 6 12 10 Final Capacity 16 | 6 16 16 16 Final Carried 12 | 6 12 12 8 Class Distribution -------------------- 93% | Mutant 6% | Scavenger-Mutant Dominant Class ---------------- Mutant | -10/Materials Mutant | -10/Mines Mutant | -9/Materials Resources | -11 -10 -10 -9 ----------- Run | Scr Mat Min Mat Matter Collected 722 | 200 256 221 45 Remotely . | . . . . Salvage Created 615 | . 340 177 98 Parts 37 | . 26 3 8 Haulers Intercepted . | . . . . Recyclers Shooed . | . . . . Parts Field Recycled . | . . . . Retrieved Matter . | . . . . Parts Self-Destructed . | . . . . Prevented . | . . . . Kills | -11 -10 -10 -9 ------- Run | Scr Mat Min Mat Combat Hostiles Destroyed 22 | . 9 9 4 Guns 20 | . 9 7 4 Cannons 2 | . . 2 . Classes Destroyed 6 | . 3 2 1 Worker 1 | . . 1 . Watcher 2 | . 2 . . Swarmer 6 | . 3 . 3 Grunt 7 | . 6 1 . Sentry 1 | . . . 1 Assembled 8 | . . 8 . Best Kill Streak 6 | . 5 6 3 Combat Bots Only 6 | . 5 6 3 Max Kills in Single Turn 1 | . 1 1 1 Gunslinging . | . . . . Exploded . | . . . . Melee . | . . . . Uniques/NPCs Destroyed . | . . . . Combat | -11 -10 -10 -9 -------- Run | Scr Mat Min Mat Damage Taken 2214 | . 358 669 1187 Core 631 | . 16 214 401 Absorbed by Shields . | . . . . Core Remaining (%) 54 | 100 . 8 . Volleys Fired 83 | . 29 37 17 Largest 2 | . 2 2 2 Hottest 123 | . 60 58 123 Shots Fired 162 | . 58 73 31 Gun 135 | . 58 62 15 Cannon 22 | . . 11 11 Launcher . | . . . . Special 5 | . . . 5 Kinetic 139 | . 40 73 26 Thermal 23 | . 18 . 5 Explosive . | . . . . Electromagnetic . | . . . . Robot Hit Streak 13 | . 13 8 6 Robot Miss Streak 4 | . 3 4 3 Penetration Max . | . . . . Secondary Targets 4 | . 3 1 . Max Gunslinging Chain 1 | . 1 1 . Shots Hit Robots 101 | . 41 45 15 Core Hits 39 | . 16 18 5 Critical Hits 1 | . 1 . . Critical Kills . | . . . . Critical Parts Destroyed 1 | . 1 . . Melee Attacks . | . . . . Impact . | . . . . Slashing . | . . . . Piercing . | . . . . Sneak Attacks . | . . . . Combat Hostiles . | . . . . Follow-up Attacks . | . . . . Damage Inflicted 1507 | . 568 695 244 Guns 1307 | . 568 609 130 Cannons 176 | . . 86 90 Explosions . | . . . . Melee . | . . . . Ramming . | . . . . Kinetic 1293 | . 378 695 220 Thermal 214 | . 190 . 24 Explosive . | . . . . Electromagnetic . | . . . . Impact . | . . . . Slashing . | . . . . Piercing . | . . . . Highest Corruption . | . . . . Average Corruption . | . . . . Corruption Purged . | . . . . Overload Shots . | . . . . Overflow Damage . | . . . . Projectiles . | . . . . Explosions . | . . . . Melee . | . . . . Knockbacks 3 | . . 2 1 Impact . | . . . . Kinetic 3 | . . 2 1 Secondary . | . . . . Self-Inflicted Damage . | . . . . Shots . | . . . . Rammed 1 | . . 1 . Targets Rammed 1 | . . 1 . Kicked . | . . . . Crushed . | . . . . Highest Temperature 69 | . 69 12 2 Average Temperature 22 | . 46 5 2 Received Heat Transfer 660 | . 159 63 438 Siege Activations . | . . . . Robots Corrupted . | . . . . Combat Hostiles . | . . . . Parts Fried . | . . . . Impact Corruptions . | . . . . Robots Melted . | . . . . Combat Hostiles . | . . . . Parts Melted . | . . . . Heat Transferred 475 | . 425 . 50 Parts Sabotaged . | . . . . Parts Stolen . | . . . . Parts Stripped . | . . . . Power Chain Reactions . | . . . . Missiles Intercepted . | . . . . Alert | -11 -10 -10 -9 ------- Run | Scr Mat Min Mat Peak Influence 247 | . 247 55 105 Average Influence 57 | . 93 25 20 Maximum Alert Level 1 | . 1 . . Low Security (%) 92 | . . . . Level 1 7 | . . . . Level 2 . | . . . . Level 3 . | . . . . Level 4 . | . . . . Level 5 . | . . . . High Security . | . . . . Max Security . | . . . . Squads Dispatched 2 | . 2 . . Investigation 1 | . 1 . . Extermination . | . . . . Reinforcement 1 | . 1 . . Assault . | . . . . Garrison . | . . . . Intercept . | . . . . Construction Impeded . | . . . . Haulers Reinforced . | . . . . Stealth | -11 -10 -10 -9 --------- Run | Scr Mat Min Mat Distress Signals 2 | . 1 . 1 Communications Jammed . | . . . . Distress Signals . | . . . . Times Spotted 42 | . 15 12 15 Peak Tracking Total 8 | . 6 2 8 Tactical Retreats 6 | . 1 3 2 Traps | -11 -10 -10 -9 ------- Run | Scr Mat Min Mat Traps Triggered 1 | . 1 . . Indirectly . | . . . . Trap Hack Attempts . | . . . . Triggered . | . . . . Disarmed . | . . . . Reprogrammed . | . . . . Reused . | . . . . Traps Extracted . | . . . . Installed . | . . . . Triggered . | . . . . Machines | -11 -10 -10 -9 ---------- Run | Scr Mat Min Mat Machines Disabled 1 | . . . 1 Max in Single Turn 1 | . . . 1 Machines Sabotaged . | . . . . Garrisons Compromised . | . . . . Overloaded Fab Kills . | . . . . Fab Network Shutdowns . | . . . . Hacking | -11 -10 -10 -9 --------- Run | Scr Mat Min Mat Machines Accessed 4 | . 3 . 1 Terminals 4 | . 3 . 1 Fabricators . | . . . . Repair Stations . | . . . . Recycling Units . | . . . . Scanalyzers . | . . . . Garrison Access . | . . . . Total Hacks 11 | . 8 . 3 Successful 3 | . 1 . 2 Failed 8 | . 7 . 1 Catastrophic . | . . . . Database Lockouts . | . . . . Manual 4 | . 2 . 2 Terminals 11 | . 8 . 3 Fabricators . | . . . . Repair Stations . | . . . . Recycling Units . | . . . . Scanalyzers . | . . . . Garrison Access . | . . . . Terminal Hacks 2 | . 1 . 1 Branch Access Points 1 | . 1 . . Investigation Status 1 | . . . 1 Fabricator Hacks . | . . . . Repair Station Hacks . | . . . . Recycling Unit Hacks . | . . . . Scanalyzer . | . . . . Garrison Access Hacks . | . . . . Unauthorized Hacks 3 | . . . 3 Terminals 1 | . . . 1 Track 1 | . . . 1 Fabricators . | . . . . Repair Stations . | . . . . Recycling Units . | . . . . Scanalyzers . | . . . . Garrison Access . | . . . . Data Cores Recovered . | . . . . Used . | . . . . Hacking Detections 3 | . 2 . 1 Full Trace Events . | . . . . Feedback Events . | . . . . Feedback Blocked . | . . . . Robot Schematics Acquired . | . . . . Robots Built . | . . . . Matter . | . . . . Time . | . . . . Total Robot Build Rating . | . . . . Part Schematics Acquired . | . . . . Parts Built . | . . . . Matter . | . . . . Time . | . . . . Total Part Build Rating . | . . . . Parts Repaired . | . . . . Time . | . . . . Parts Recycled . | . . . . Recycled Matter . | . . . . Retrieved Matter . | . . . . Retrieved Components . | . . . . Parts Scanalyzed . | . . . . Part Schematics Acquired . | . . . . Parts Damaged . | . . . . Bothacking | -11 -10 -10 -9 ------------ Run | Scr Mat Min Mat Used RIF Installer . | . . . . Robots Hacked . | . . . . Non-combat . | . . . . Combat . | . . . . Robot Hacks Applied . | . . . . Relay Couplers Released . | . . . . Robots Rewired . | . . . . Allies Hacked . | . . . . Hacks Repelled . | . . . . Allies | -11 -10 -10 -9 -------- Run | Scr Mat Min Mat Total Allies . | . . . . Largest Group . | . . . . Highest-Rated Group . | . . . . Highest-Rated Ally . | . . . . Total Orders . | . . . . Ally Attacks . | . . . . Total Damage . | . . . . Kills . | . . . . Allies Corrupted . | . . . . Allies Melted . | . . . . Intel | -11 -10 -10 -9 ------- Run | Scr Mat Min Mat Robot Analysis Total . | . . . . Derelict Logs Recovered . | . . . . Drone Launches . | . . . . Drone Recoveries . | . . . . Exploration | -11 -10 -10 -9 ------------- Run | Scr Mat Min Mat Turns Passed 1654 | . 792 586 276 Spaces Moved 826 | 1 495 229 101 Core 4 | . . . 4 Treads . | . . . . Legs 822 | 1 495 229 97 Wheels . | . . . . Hover . | . . . . Flight . | . . . . Fastest Speed 120 | 120 120 150 180 Average Speed 153 | 120 132 179 195 Slowest Speed 650 | 120 180 180 650 Overloaded Moves . | . . . . Propulsion Burnouts . | . . . . Robots Hopped . | . . . . Cave-ins Triggered . | . . . . Exploration Rate (%) 30 | 2 72 37 12 Regions Visited 3 Branch Regions 1 Pre-discovered Areas 1 | . . 1 . Known Exits Taken 1 | . 1 . . Unknown Exits Taken 2 | 1 . 1 . Scrap Searched 2 | . . 2 . Spaces Dug . | . . . . Terrain Destroyed 1 | . . . 1 Melee . | . . . . Projectile 1 | . . . 1 AOE . | . . . . Actions | -11 -10 -10 -9 --------- Run | Scr Mat Min Mat Total 1049 | . 580 330 139 Wait 87 | . 14 60 13 Move 823 | . 494 228 101 Hop . | . . . . Pick Up 13 | . 10 2 1 Fast Attach 5 | . 5 . . Attach 7 | . . 2 5 Detach 1 | . 1 . . Swap 11 | . 10 . 1 Drop 17 | . 16 . 1 Fire 83 | . 29 37 17 Melee . | . . . . Ram . | . . . . Kick 1 | . . 1 . Crush . | . . . . Escape Stasis . | . . . . Rewire 1 | . 1 . . Trap . | . . . . Miscellaneous . | . . . . Route ------- -11/Scrapyard -10/Materials (discovered 3 exits: *Mat x2 / *Min) -10/Mines -9/Materials History --------- Turn | Location | Event 1 | -11/Scrapyard | Discovered new exit (range 0) 1 | -11/Scrapyard | Entered Materials 383 | -10/Materials | Discovered new exit (range 3) 403 | -10/Materials | Identified exit to Mines 558 | -10/Materials | Discovered new exit (range 15) 702 | -10/Materials | Build established: Mutant 793 | -10/Materials | Entered Mines 814 | -10/Mines | Met a Derelict bent on vengeance 1118 | -10/Mines | Assembled infested the area 1145 | -10/Mines | Learned location of Storage (-7) 1145 | -10/Mines | Discovered new exit (range 6) 1234 | -10/Mines | Core integrity fell below 50% 1330 | -10/Mines | Core integrity fell below 20% 1379 | -10/Mines | Entered Materials 1379 | -9/Materials | Evolved 2 slots: Utility x2 1642 | -9/Materials | Core integrity fell below 50% 1649 | -9/Materials | Core integrity fell below 20% 1655 | -9/Materials | Destroyed by G-34 Mercenary with Small Laser Last Messages --------------- 01578_ K-01 Serf collects debris. 01578_ R-06 Scavenger collects Imp. Ion Engine. 01583_ R-06 Scavenger collects Heat Sink. 01585_ Med. Armor Plating destroyed. 01594_ S-10 Pest knocked back. 01597_ S-10 Pest destroyed. 01602_ Lgt. Cannon destroyed. 01606_ R-06 Scavenger collects Lgt. Ion Engine. 01615_ S-10 Pest destroyed. 01615_ Terminal disabled. 01617_ U-05 Engineer builds a Door. 01620_ S-10 Pest destroyed. 01622_ Hvy. Assault Rifle destroyed. 01624_ R-06 Scavenger collects Flight Unit. 01625_ U-05 Engineer lays Concrete. 01628_ Aluminum Leg destroyed. 01630_ Mining Laser destroyed. 01633_ Aluminum Leg destroyed. 01634_ Lgt. Nuclear Core destroyed. 01639_ Imp. Heat Sink destroyed. Map ----- +----------------------------------------------------+ | | | | | | | | | | | | | | | | | | | | | | | | | | | | | | | | | | | | | | | | | ???????????????????#########?????????????????????? | | ???????????????????# #?????????????????????? | | ???????????????????# [g #??????#######????????? | | ???????????????????# =% #?????# #????????? | | ????????????######## "=gg ####### #????????? | | ??????####### ## *%g@ # # #????????? | | ?? #######/## # """ #????????? | | ?? g% + """ #????????? | | ?? ########## # """ #????????? | | ??? ###/### #????????# ########??????### | | ????????????# #####????????## ##??????????# | | ????????????# ??????????????# #???????????# | | ????????????#???????????????# #???????????# | | ????????????????????????????# #???????????# | | ????????????????????????????# ########????# | | ????????????????????????????# # #????# | | ????????????????????????????# # """ #????# | | ????????????????????????????# # """ #????# | | ????????????????????????????# # """ #????# | | ????????????????????????????# # #???????#+# | | ????????????????????????????# #? ????????# # | | ?????????????????????????#### ####+########### # | | ?????????????????????????# | | ?????????????????????????# | | ?????????????????????????# | | ?????????????????????????# ##################### | | ??????????????????????? ?????????????????# | | ????????????????????? ?????????????????# | | ???????????????????? ?????????????????# | | ???????????????????####### ??????????????????# | +----------------------------------------------------+ Best States ------------- Heat Dissipation 42 Energy Generation 14 Energy Capacity 250 Matter Stores 300 Matter Capacity 300 Sight Range 16 Terrain Scan Density 10 Armor Coverage 225 Propulsion Shielding 33 Evasion (%) 40 Targeting Accuracy 5 Item Schematics ----------------- None Robot Schematics ------------------ None Fabricated ------------ Nothing Alien Tech Used ----------------- None Achievements -------------- None Challenges ------------ None Game ------ Seed GatlingPropulsionTrap Manual? 0 Play Time 00:14:38 Cumulative 28.0 hours Start 2019.10.31 @ 23:06:44 End 2019.10.31 @ 23:22:01 Sessions 1 Manual Loads 0 Difficulty Rogue Special Mode None Game No. 24 Rogue 18 Adventurer 3 Explorer 0 Win Type - Total 0 Types 0/0/0/0/0/0/0 Lore% 27 Gallery% 46 Achievement% 31 Wizard Run 0 Options --------- ASCII 0 Keyboard 1 Movement Vi Keybinds 0 Fullscreen 2 Font 18/Terminus Map View 76x50 Tactical HUD 1 Map Filters NONE Filters NONE Steam 1 RUN: bfc2e76c-9fea-48b5-85b2-accd4cf60971